{"text_format":"1","workbook":"xlsx","n_sheets":17,"sheets":["Instructivos","DS-02","anexo 1","anexo 2","anexo 3","anexo 4","anexo 5","anexo 6","anexo 7","anexo 8","anexo 9","anexo 10","anexo 11","clasificación internacional","Tabla SMV-001","Tabla SMV-002","Tabla SMV-003"],"not_rendered":{"charts":0,"images":0,"macros":1,"external_links":0,"defined_names":4,"comments":12,"pivot_tables":0},"unopened":[],"bounds":{"document_bytes":16777216,"sheet_cells":100000,"rows_first":2000,"rows_last":500,"rows_between":2000,"halvings":0,"cell_chars":16384,"cell_head_chars":4096},"cells_cut":0,"cells_raw":0,"read":"whole","date_system":"1900"}

{"sheet":"Instructivos","index":0,"n_rows":38,"n_cols":3,"rows_kept":38,"cut":false,"hidden":false,"merged":[[0,0,0,1],[1,0,1,1],[2,0,2,1]]}
["Superintendencia del Mercado de Valores"]
["Formulario DS-02.1"]
["Informe de Liquidez"]
[]
["Cuenta ","Descripción","Formato"]
["Efectivo","Debe reportar el efectivo que se mantiene en la casa de valores al cierre del período. (se incluye la caja chica).","Numérico(decimal)"]
["Depósitos a la Vista en Bancos","En esta cuenta se registran los depósitos de cuentas corrientes en bancos locales y extranjeros con licencia para operar en la República de Panamá.  Estos depósitos son pagaderos a requerimiento.","Numérico"]
["Depósitos a Plazo en Bancos","Son depósitos colocados a plazo fijo en bancos locales y extranjeros con licencia para operar en la República de Panamá los cuales tienen un vencimiento establecido y una tasa de interés pactada.  Hasta 365 días.","Numérico"]
["Bancos Locales","Son los Bancos que mantienen licencia para operar en la República de Panamá. (Tabla SMV-002)","Texto"]
["Bancos Extranjeros","Son los Bancos que mantienen licencia para operar en la República de Panamá. (Tabla SMV-002)","Texto"]
["Valor en deuda pública de la República de Panamá","Son los valores emitidos por la República de Panamá. ","Numérico"]
["Obligaciones Emitidas por Estados Extranjeros","Obligaciones emitidas por Estados Extranjeros que se negocian activamente en mercados de valores y calificados con grado de inversión igual o superior al de la República de Panamá.","Numérico"]
["Papel Comercial o Valores Comerciales Negociables","Son los papeles comerciales  o cualquier otro instrumento de captación de recursos a corto plazo (con vencimiento no mayor a 186 días), emitido por alguna compañia financiera listados en  alguna entidad registrada como bolsa.","Numérico"]
["Saldos Netos en Bancos Calificados","Saldos netos en bancos que operan fuera de la República de Panamá calificados con grado de inversión BBB-, Baa3 o superior (según calificadora), exigibles a la vista o plazo cuyo vencimiento no exceda 186 días y pagaderos en monedas de curso legal en Panamá.","Numérico"]
["Obligaciones de Empresas de Derecho Privado","Obligaciones de empresas de derecho privado con calificación no inferior a BB+ o Ba1 (según calificadora), que se negocie en un mercado activo y pagaderos en monedas de curso legal en Panamá).","Numérico"]
["Instrumentos representativos de patrimonio emitidos por empresas extranjeras o panameñas de derecho privado","Instrumentos emitidos por empresas extranjeras o panameña representantivo de patrimonio.","Numérico"]
["Acreencias representada por los préstamos otorgados a los clientes para la adquisición de los valores en Balboas o  Dólar de los Estados Unidos de América o cualquier otra moneda de un país con grado de inversión, siempre que los mismos estén garantizados con los títulos valores y no haya deterioro entre el monto del préstamo y el valor de mercado del los títulos.","Préstamos de Margen","Numérico"]
["Total de Activos Líquidos","Sumatoria de depósitos a la vista en bancos, depósitos a plazo en bancos, valor de deuda pública de la República de Panamá, obligaciones emitidas por Gobiernos Extranjeros, papel comercial o valores comerciales negociables, saldos netos en bancos calificados y obligaciones de empresas de derecho privado.","Numérico"]
["Cuentas por Pagar","Esta cuenta registrará las obligaciones a corto plazo generadas por las distintas operaciones de la Casa de Valores. ","Numérico"]
["Intereses por pagar","Esta cuenta registra los intereses a corto plazo generados por las obligaciones de la Casa de Valores.","Numérico"]
["Financiamientos recibidos","Se registran las obligaciones adquiridas por la Casa de Valores mediante préstamos recibidos de bancos e instituciones financieras con vencimiento remanente hasta un año.","Numérico"]
["Otros pasivos exigibles menores a un año","Son aquellos compromisos con vencimiento dentro de un periodo no mayor a un (1) año, incluyendo la porción  corriente de obligaciones a largo plazo.","Numérico"]
["Índice de Liquidez Legal Reportado","Total de Activos Líquidos / Total de Pasivos Exigibles menores a 1 año","Numérico"]
["Fecha","Corresponde a la fecha que esta reportando la información","AAAAMMDD"]
["Fecha de Emisión","Corresponde a la fecha de Emisión según corresponda el rubro de liquidez.","AAAAMMDD"]
["Fecha de Adquisición","Corresponde a la fecha de Adquisición o de inicio según aplique el rubro de liquidez.","AAAAMMDD"]
["Fecha de Vencimiento","Corresponde a la fecha de vencimiento que aplica el rubro","AAAAMMDD"]
["Destino","Determina el destino o procedencia según corresponda de la operación ","Texto"]
["Región","Corresponde al código del país del extranjero (Tabla SMV-003)","Texto"]
["Valor en Libro","Valor al cierre contable.","Numérico"]
["Valor Nominal","Valor nominal del instrumento u obligación.","Numérico"]
["Valor Contable","Valor en el mercado del instrumento u obligación.","Numérico"]
[]
["Notas de importancia:"]
[null,"(a) Si algún punto del informe no aplica favor dejar en blanco y llenar solo los que correspondan."]
[null,"(b) El formulario debe estar firmado por el Ejecutivo Principal o en su ausencia por el Oficial de Cumplimiento de la Casa de Valores."]
[null,"( c) Las celdas de moneda y tasa de conversión, solo se llena cuando aplique."]
[null,"(d) Tener presente que el título que posea la Casa de Valores debe cumplir  al 100% lo solicitado en el Acuerdo 4-2011, de lo contrario no aplica."]

{"sheet":"DS-02","index":1,"n_rows":29,"n_cols":2,"rows_kept":29,"cut":false,"hidden":false,"merged":[[2,0,2,1],[1,0,1,1],[0,0,0,1]]}
["Superintendencia del Mercado de Valores"]
["Formulario DS-02.1"]
["Informe de Liquidez"]
[]
[]
["Detalle","Monto"]
["Efectivo*"]
["*Depósitos a la Vista en Bancos",{"$f":"SUM(B9,B10)","v":0}]
["   Local",{"$f":"SUMIF('anexo 1'!$E$13:$E$1048576,\"Local\",'anexo 1'!$C$13:$C$1048576)","v":0}]
["   Extranjero",{"$f":"SUMIF('anexo 1'!$E$13:$E$1048576,\"Extranjero\",'anexo 1'!$C$13:$C$1048576)","v":0}]
["*Depósitos a Plazo en Bancos < 1 año",{"$f":"SUM(B12,B13)","v":0}]
["   Local",{"$f":"SUMIF('anexo 2'!$E$9:$E$1048576,\"Local\",'anexo 2'!$C$9:$C$1048576)","v":0}]
["   Extranjero",{"$f":"SUMIF('anexo 2'!$E$9:$E$1048576,\"Extranjero\",'anexo 2'!$C$9:$C$1048576)","v":0}]
["Valor en deuda pública de la República de Panamá*",{"$f":"SUM('anexo 3'!$F$9:$F$1048576)","v":0}]
["Papel Comercial o Valores Comerciales Negociables o cualquier otro instrumento listado en bolsa*",{"$f":"SUM('anexo 5'!$G$9:$G$1048576)","v":0}]
["Saldos netos en Bancos o Instituciones Financieras Calificados con grado de inversión*",{"$f":"SUM('anexo 6'!$C$9:$C$1048576)","v":0}]
["Obligaciones Emitidas por Estados Extranjeros*",{"$f":"SUM('anexo 4'!$H$9:$H$1048576)","v":0}]
["Obligaciones de Empresas extranjeras de derecho privado*",{"$f":"SUM('anexo 7'!$F$9:$F$1048576)","v":0}]
["Instrumentos representativos de patrimonio emitidos por empresas extranjeras o panameñas de derecho privado*",{"$f":"SUM('anexo 10'!$E$8:$E$1048576)","v":0}]
["Acreencias representadas por los préstamos otorgados a los clientes para la adquisición de valores de un país con grado de inversión*",{"$f":"SUM('anexo 11'!$D$8:$D$1048576)","v":0}]
["Total de Activos Líquidos",{"$f":"+B7+B8+B11+B14+B15+B16+B17+B18+B19+B20","v":0}]
["Pasivos Exigibles Menores a un (1) Año",{"$f":"+B23+B24+B25+B26","v":0}]
["   Cuentas por Pagar*"]
["   Intereses por Pagar*"]
["   Total de Financiamientos Recibidos",{"$f":"SUM('anexo 8'!$C$9:$C$1048576)","v":0}]
["   Otros Pasivos Exigibles menores a un año",{"$f":"SUM('anexo 9'!$D$9:$D$1048576)","v":0}]
["Total de Pasivos Exigibles Menores a un (1) Año",{"$f":"B22","v":0}]
["Coeficiente de Liquidez Legal Reportado",{"$f":"IFERROR(B21/B27,0)","v":0}]
["* Identificar el Depósito donde contemple el monto a Reservar"]

{"sheet":"anexo 1","index":2,"n_rows":11,"n_cols":9,"rows_kept":11,"cut":false,"hidden":false,"merged":[[0,0,0,8],[1,0,1,8],[2,0,2,8],[9,0,9,8],[10,0,11,0],[10,1,11,1],[10,2,11,2],[10,3,11,3],[10,4,11,4],[10,5,11,5],[10,6,11,6],[10,7,11,7],[10,8,11,8],[8,0,8,1],[3,0,3,8]]}
["Superintendencia del Mercado de Valores"]
["Formulario DS-02.1"]
["Anexo No.1"]
["Versión 1.3"]
["Casa de Valores:"]
["Código*:"]
["Periodo*:"]
[]
["Los campos con asterisco (*) son obligatorios"]
["Depósitos a La Vista en Bancos Locales"]
["Fecha*","Banco*","Monto*","Banco Relacionado*","Destino*","Región","Tasa de Interés","Calificación","Calificadora"]

{"sheet":"anexo 2","index":3,"n_rows":7,"n_cols":10,"rows_kept":7,"cut":false,"hidden":false,"merged":[[6,2,7,2],[6,3,7,3],[6,4,7,4],[4,0,4,9],[0,0,0,9],[1,0,1,9],[2,0,2,9],[6,0,7,0],[6,1,7,1],[6,5,7,5],[6,6,7,6],[6,7,7,7],[6,8,7,8],[6,9,7,9]]}
["Superintendencia del Mercado de Valores"]
["Formulario DS-02.1"]
["Anexo No.2"]
[]
["Depósitos a Plazo en Bancos"]
[]
["Fecha*","Banco*","Valor (en USD)*","Banco Relacionado*","Destino*","Región","Tasa de Interés","Calificación","Calificadora","Fecha de Vencimiento*"]

{"sheet":"anexo 3","index":4,"n_rows":8,"n_cols":12,"rows_kept":8,"cut":false,"hidden":false,"merged":[[0,0,0,11],[1,0,1,11],[2,0,2,11],[6,1,7,1],[6,3,6,5],[6,11,7,11],[6,10,7,10],[6,9,7,9],[6,6,6,8],[4,0,4,11],[6,0,7,0],[6,2,7,2]]}
["Superintendencia del Mercado de Valores"]
["Formulario DS-02.1"]
["Anexo No.3"]
[]
["Valores de Deuda Pública de la República de Panamá"]
[]
["Emisor*","Tipo de Valor*","Detalle otro Tipo de Valor","Valor (en USD)*",null,null,"Fecha*",null,null,"Calificación de País","Calificadora","Tasa de Interés*"]
[null,null,null,"En Libros","Nominal","De Mercado","Emisión","Adquisición","Vencimiento"]

{"sheet":"anexo 4","index":5,"n_rows":8,"n_cols":14,"rows_kept":8,"cut":false,"hidden":false,"merged":[[6,12,7,12],[6,13,7,13],[4,0,4,13],[0,0,0,13],[1,0,1,13],[2,0,2,13],[6,1,7,1],[6,0,7,0],[6,3,7,3],[6,4,7,4],[6,5,6,7],[6,8,6,10],[6,11,7,11],[6,2,7,2]]}
["Superintendencia del Mercado de Valores"]
["Formulario DS-02.1"]
["Anexo No.4"]
[]
["Obligaciones Emitidas por Gobiernos Extranjeros"]
[]
["Emisor*","Tipo de Valor*","Detalle otro Tipo de Valor","Gobierno Garante*","Moneda*","Valor (en Balboas)*",null,null,"Fecha*",null,null,"Calificación de País","Calificadora","Tasa de Interés"]
[null,null,null,null,null,"En Libros","Nominal","De Mercado","Emisión","Adquisición","Vencimiento"]

{"sheet":"anexo 5","index":6,"n_rows":8,"n_cols":13,"rows_kept":8,"cut":false,"hidden":false,"merged":[[6,11,7,11],[6,12,7,12],[6,7,7,7],[4,0,4,12],[0,0,0,12],[1,0,1,12],[2,0,2,12],[6,1,7,1],[6,0,7,0],[6,2,7,2],[6,4,6,6],[6,8,7,8],[6,9,7,9],[6,10,7,10],[6,3,7,3]]}
["Superintendencia del Mercado de Valores"]
["Formulario DS-02.1"]
["Anexo No.5"]
[]
["Papel Comercial o Valores Comerciales Negociables"]
[]
["Fecha*","Emisor*","Tipo de valor*","Detalle otro Tipo de Valor","Valor (en USD)*",null,null,"Destino*","Región","Calificación","Calificadora","Fecha de Vencimiento*","Tasa de Interés"]
[null,null,null,null,"En Libros","Nominal","De Mercado"]

{"sheet":"anexo 6","index":7,"n_rows":7,"n_cols":11,"rows_kept":7,"cut":false,"hidden":false,"merged":[[0,0,0,10],[1,0,1,10],[2,0,3,10],[6,10,7,10],[4,0,4,10],[6,1,7,1],[6,0,7,0],[6,2,7,2],[6,3,7,3],[6,4,7,4],[6,5,7,5],[6,6,7,6],[6,7,7,7],[6,8,7,8],[6,9,7,9]]}
["Superintendencia del Mercado de Valores"]
["Formulario DS-02.1"]
["Anexo No.6"]
[]
["Saldos Netos en Bancos Calificados"]
[]
["Fecha*","Banco*","Valor Monto (en USD)*","Depósito*","Banco Relacionado*","Destino*","Región","Tasa de Interés","Calificación*","Calificadora*","Fecha de Vencimiento"]

{"sheet":"anexo 7","index":8,"n_rows":8,"n_cols":12,"rows_kept":8,"cut":false,"hidden":false,"merged":[[6,9,7,9],[6,10,7,10],[6,11,7,11],[4,0,4,11],[0,0,0,11],[1,0,1,11],[2,0,2,11],[6,1,7,1],[6,0,7,0],[6,2,7,2],[6,3,6,5],[6,6,7,6],[6,7,7,7],[6,8,7,8]]}
["Superintendencia del Mercado de Valores"]
["Formulario DS-02.1"]
["Anexo No.7"]
[]
["Obligaciones de Empresas de Derecho Privado"]
[]
["Fecha*","Empresa*","Descripción de la Obligación*","Valor (en USD)*",null,null,"Destino*","Región","Calificación","Calificadora","Fecha de Vencimiento*","Tasa de Interés"]
[null,null,null,"En Libros","Nominal","De Mercado"]

{"sheet":"anexo 8","index":9,"n_rows":7,"n_cols":6,"rows_kept":7,"cut":false,"hidden":false,"merged":[[0,0,0,5],[1,0,1,5],[2,0,2,5],[6,1,7,1],[6,0,7,0],[6,2,7,2],[6,3,7,3],[6,4,7,4],[6,5,7,5],[4,0,4,5]]}
["Superintendencia del Mercado de Valores"]
["Formulario DS-02.1"]
["Anexo No.8"]
[]
["Financiamientos Recibidos"]
[]
["Fecha*","Entidad Financiera*","Valor Monto (en USD)*","Destino*","Región","Fecha de Vencimiento*"]

{"sheet":"anexo 9","index":10,"n_rows":29,"n_cols":13,"rows_kept":29,"cut":false,"hidden":false,"merged":[[6,6,7,6],[0,0,0,6],[1,0,1,6],[2,0,2,6],[6,1,7,1],[4,0,4,6],[6,0,7,0],[6,2,7,2],[6,3,7,3],[6,4,7,4],[6,5,7,5]]}
["Superintendencia del Mercado de Valores"]
["Formulario DS-02.1"]
["Anexo No.9"]
[]
["Otros Pasivos Exigibles"]
[]
["Fecha*","Empresa*","Detalle*","Monto (En USD)*","Destino*","Región","Fecha de Vencimiento*"]
[]
[]
[]
[]
[]
[]
[]
[]
[]
[]
[]
[]
[]
[]
[]
[]
[]
[]
[]
[]
[]
[null,null,null,null,null,null,null,null,null,null,null,null,{"$f":"IF(ISERROR(M22/M28),0,M22/M28)","v":0}]

{"sheet":"anexo 10","index":11,"n_rows":7,"n_cols":11,"rows_kept":7,"cut":false,"hidden":false,"merged":[[0,0,0,10],[1,0,1,10],[2,0,2,10],[4,0,4,10]]}
["Superintendencia del Mercado de Valores"]
["Formulario DS-02.1"]
["Anexo No.10"]
[]
["Instrumentos Representativos de Patrimonio Emitidos por Empresas Extranjeras o Panameñas de Derecho Privado"]
[]
["Fecha*","Emisor*","Tipo de Acción*","Precio de Compra*","Precio de Mercado*","Destino*","Región","Calificación de Emisor","Calificadora","Fecha de Vencimiento","Tasa de Interés"]

{"sheet":"anexo 11","index":12,"n_rows":7,"n_cols":9,"rows_kept":7,"cut":false,"hidden":false,"merged":[[0,0,0,8],[1,0,1,8],[2,0,2,8],[4,0,4,8]]}
["Superintendencia del Mercado de Valores"]
["Formulario DS-02.1"]
["Anexo No.11"]
[]
["Acreencias Representadas por los préstamos otorgados a los clientes para la adquisición de valores de un país con grado de inversión"]
[]
["Fecha*","Número de Clientes*","Número de cuentas*","Monto del Préstamo de Margen*","Monto Marginado*","Valor del Mercado portafolio Marginado*","Parte Relacionada*","Fecha de Vencimiento","Tasa de Interés"]

{"sheet":"clasificación internacional","index":13,"n_rows":202,"n_cols":12,"rows_kept":202,"cut":false,"hidden":false,"merged":[[14,0,16,0],[14,5,16,5],[0,0,0,5],[1,0,1,5],[3,0,13,0],[5,1,7,1],[5,5,7,5],[8,1,10,1],[8,5,10,5],[11,1,13,1],[11,5,13,5]]}
["Superintendencia del Mercado de Valores"]
["Clasificación Internacional"]
[]
["Grado de Inversión","Nivel","Standard & Poor","Moody´s","Fitch","Explicación",null,null,"calificacion","calificadora",null,"Monedas"]
[null,1,"AAA","Aaa","AAA","La más alta calidad",null,null,"AAA","Standard and Poor",null,"EUR"]
[null,2,"AA+","Aa1","AA+","Alta calidad",null,null,"AA+","Moody´s",null,"USD"]
[null,null,"AA","Aa2","AA",null,null,null,"AA","Fitch",null,"GBP"]
[null,null,"AA-","Aa3","AA-",null,null,null,"AA-",null,null,"CAD"]
[null,3,"A+","A1","A+","Gran capacidad de pago",null,null,"A+",null,null,"AUD"]
[null,null,"A","A2","A",null,null,null,"A",null,null,"ADF"]
[null,null,"A-","A3","A-",null,null,null,"A-",null,null,"ADP"]
[null,4,"BBB+","Baa1","BBB+","Capacidad de pago adecuada",null,null,"BBB+",null,null,"AED"]
[null,null,"BBB","Baa2","BBB",null,null,null,"BBB",null,null,"AFA"]
[null,null,"BBB-","Baa3","BBB-",null,null,null,"BBB-",null,null,"AFN"]
["Riesgo Moderado",1,"BB+","Ba1","BB+","Probable cumplimiento de obligaciones; incertidumbre cotidiana",null,null,"BB+",null,null,"ALL"]
[null,2,"BB","Ba2","BB",null,null,null,"BB",null,null,"AMD"]
[null,3,"BB-","Ba3","BB-",null,null,null,"BB-",null,null,"ANG"]
[null,null,null,null,null,null,null,null,"Aaa",null,null,"AOA"]
[null,null,null,null,null,null,null,null,"Aa1",null,null,"AON"]
[null,null,null,null,null,null,null,null,"Aa2",null,null,"ARS"]
[null,null,null,null,null,null,null,null,"Aa3",null,null,"ATS"]
[null,null,null,null,null,null,null,null,"A1",null,null,"AWG"]
[null,null,null,null,null,null,null,null,"A2",null,null,"AZM"]
[null,null,null,null,null,null,null,null,"A3",null,null,"AZN"]
[null,null,null,null,null,null,null,null,"Baa1",null,null,"BAM"]
[null,null,null,null,null,null,null,null,"Baa2",null,null,"BBD"]
[null,null,null,null,null,null,null,null,"Baa3",null,null,"BDT"]
[null,null,null,null,null,null,null,null,"Ba1",null,null,"BEF"]
[null,null,null,null,null,null,null,null,"Ba2",null,null,"BGL"]
[null,null,null,null,null,null,null,null,"Ba3",null,null,"BGN"]
[null,null,null,null,null,null,null,null,null,null,null,"BHD"]
[null,null,null,null,null,null,null,null,null,null,null,"BIF"]
[null,null,null,null,null,null,null,null,null,null,null,"BMD"]
[null,null,null,null,null,null,null,null,null,null,null,"BND"]
[null,null,null,null,null,null,null,null,null,null,null,"BOB"]
[null,null,null,null,null,null,null,null,null,null,null,"BRL"]
[null,null,null,null,null,null,null,null,null,null,null,"BSD"]
[null,null,null,null,null,null,null,null,null,null,null,"BTC"]
[null,null,null,null,null,null,null,null,null,null,null,"BTN"]
[null,null,null,null,null,null,null,null,null,null,null,"BWP"]
[null,null,null,null,null,null,null,null,null,null,null,"BYR"]
[null,null,null,null,null,null,null,null,null,null,null,"BZD"]
[null,null,null,null,null,null,null,null,null,null,null,"CDF"]
[null,null,null,null,null,null,null,null,null,null,null,"CHF"]
[null,null,null,null,null,null,null,null,null,null,null,"CLP"]
[null,null,null,null,null,null,null,null,null,null,null,"CNY"]
[null,null,null,null,null,null,null,null,null,null,null,"COP"]
[null,null,null,null,null,null,null,null,null,null,null,"CRC"]
[null,null,null,null,null,null,null,null,null,null,null,"CUC"]
[null,null,null,null,null,null,null,null,null,null,null,"CUP"]
[null,null,null,null,null,null,null,null,null,null,null,"CVE"]
[null,null,null,null,null,null,null,null,null,null,null,"CYP"]
[null,null,null,null,null,null,null,null,null,null,null,"CZK"]
[null,null,null,null,null,null,null,null,null,null,null,"DEM"]
[null,null,null,null,null,null,null,null,null,null,null,"DJF"]
[null,null,null,null,null,null,null,null,null,null,null,"DKK"]
[null,null,null,null,null,null,null,null,null,null,null,"DOP"]
[null,null,null,null,null,null,null,null,null,null,null,"DZD"]
[null,null,null,null,null,null,null,null,null,null,null,"ECS"]
[null,null,null,null,null,null,null,null,null,null,null,"EEK"]
[null,null,null,null,null,null,null,null,null,null,null,"EGP"]
[null,null,null,null,null,null,null,null,null,null,null,"ERN"]
[null,null,null,null,null,null,null,null,null,null,null,"ESP"]
[null,null,null,null,null,null,null,null,null,null,null,"ETB"]
[null,null,null,null,null,null,null,null,null,null,null,"FIM"]
[null,null,null,null,null,null,null,null,null,null,null,"FJD"]
[null,null,null,null,null,null,null,null,null,null,null,"FKP"]
[null,null,null,null,null,null,null,null,null,null,null,"FRF"]
[null,null,null,null,null,null,null,null,null,null,null,"GEL"]
[null,null,null,null,null,null,null,null,null,null,null,"GHC"]
[null,null,null,null,null,null,null,null,null,null,null,"GHS"]
[null,null,null,null,null,null,null,null,null,null,null,"GIP"]
[null,null,null,null,null,null,null,null,null,null,null,"GMD"]
[null,null,null,null,null,null,null,null,null,null,null,"GNF"]
[null,null,null,null,null,null,null,null,null,null,null,"GRD"]
[null,null,null,null,null,null,null,null,null,null,null,"GTQ"]
[null,null,null,null,null,null,null,null,null,null,null,"GYD"]
[null,null,null,null,null,null,null,null,null,null,null,"HKD"]
[null,null,null,null,null,null,null,null,null,null,null,"HNL"]
[null,null,null,null,null,null,null,null,null,null,null,"HRK"]
[null,null,null,null,null,null,null,null,null,null,null,"HTG"]
[null,null,null,null,null,null,null,null,null,null,null,"HUF"]
[null,null,null,null,null,null,null,null,null,null,null,"IEP"]
[null,null,null,null,null,null,null,null,null,null,null,"ILS"]
[null,null,null,null,null,null,null,null,null,null,null,"INR"]
[null,null,null,null,null,null,null,null,null,null,null,"IQD"]
[null,null,null,null,null,null,null,null,null,null,null,"IRR"]
[null,null,null,null,null,null,null,null,null,null,null,"ISK"]
[null,null,null,null,null,null,null,null,null,null,null,"ITL"]
[null,null,null,null,null,null,null,null,null,null,null,"JMD"]
[null,null,null,null,null,null,null,null,null,null,null,"JOD"]
[null,null,null,null,null,null,null,null,null,null,null,"JPY"]
[null,null,null,null,null,null,null,null,null,null,null,"KES"]
[null,null,null,null,null,null,null,null,null,null,null,"KGS"]
[null,null,null,null,null,null,null,null,null,null,null,"KHR"]
[null,null,null,null,null,null,null,null,null,null,null,"KMF"]
[null,null,null,null,null,null,null,null,null,null,null,"KPW"]
[null,null,null,null,null,null,null,null,null,null,null,"KRW"]
[null,null,null,null,null,null,null,null,null,null,null,"KWD"]
[null,null,null,null,null,null,null,null,null,null,null,"KYD"]
[null,null,null,null,null,null,null,null,null,null,null,"KZT"]
[null,null,null,null,null,null,null,null,null,null,null,"LAK"]
[null,null,null,null,null,null,null,null,null,null,null,"LBP"]
[null,null,null,null,null,null,null,null,null,null,null,"LKR"]
[null,null,null,null,null,null,null,null,null,null,null,"LRD"]
[null,null,null,null,null,null,null,null,null,null,null,"LSL"]
[null,null,null,null,null,null,null,null,null,null,null,"LTL"]
[null,null,null,null,null,null,null,null,null,null,null,"LUF"]
[null,null,null,null,null,null,null,null,null,null,null,"LVL"]
[null,null,null,null,null,null,null,null,null,null,null,"LYD"]
[null,null,null,null,null,null,null,null,null,null,null,"MAD"]
[null,null,null,null,null,null,null,null,null,null,null,"MDL"]
[null,null,null,null,null,null,null,null,null,null,null,"MGA"]
[null,null,null,null,null,null,null,null,null,null,null,"MGF"]
[null,null,null,null,null,null,null,null,null,null,null,"MKD"]
[null,null,null,null,null,null,null,null,null,null,null,"MMK"]
[null,null,null,null,null,null,null,null,null,null,null,"MNT"]
[null,null,null,null,null,null,null,null,null,null,null,"MOP"]
[null,null,null,null,null,null,null,null,null,null,null,"MRO"]
[null,null,null,null,null,null,null,null,null,null,null,"MTL"]
[null,null,null,null,null,null,null,null,null,null,null,"MUR"]
[null,null,null,null,null,null,null,null,null,null,null,"MVR"]
[null,null,null,null,null,null,null,null,null,null,null,"MWK"]
[null,null,null,null,null,null,null,null,null,null,null,"MXN"]
[null,null,null,null,null,null,null,null,null,null,null,"MYR"]
[null,null,null,null,null,null,null,null,null,null,null,"MZM"]
[null,null,null,null,null,null,null,null,null,null,null,"MZN"]
[null,null,null,null,null,null,null,null,null,null,null,"NAD"]
[null,null,null,null,null,null,null,null,null,null,null,"NGN"]
[null,null,null,null,null,null,null,null,null,null,null,"NIO"]
[null,null,null,null,null,null,null,null,null,null,null,"NLG"]
[null,null,null,null,null,null,null,null,null,null,null,"NOK"]
[null,null,null,null,null,null,null,null,null,null,null,"NPR"]
[null,null,null,null,null,null,null,null,null,null,null,"NZD"]
[null,null,null,null,null,null,null,null,null,null,null,"OMR"]
[null,null,null,null,null,null,null,null,null,null,null,"PAB"]
[null,null,null,null,null,null,null,null,null,null,null,"PEN"]
[null,null,null,null,null,null,null,null,null,null,null,"PGK"]
[null,null,null,null,null,null,null,null,null,null,null,"PHP"]
[null,null,null,null,null,null,null,null,null,null,null,"PKR"]
[null,null,null,null,null,null,null,null,null,null,null,"PLN"]
[null,null,null,null,null,null,null,null,null,null,null,"PTE"]
[null,null,null,null,null,null,null,null,null,null,null,"PYG"]
[null,null,null,null,null,null,null,null,null,null,null,"QAR"]
[null,null,null,null,null,null,null,null,null,null,null,"ROL"]
[null,null,null,null,null,null,null,null,null,null,null,"RON"]
[null,null,null,null,null,null,null,null,null,null,null,"RSD"]
[null,null,null,null,null,null,null,null,null,null,null,"RUB"]
[null,null,null,null,null,null,null,null,null,null,null,"RWF"]
[null,null,null,null,null,null,null,null,null,null,null,"SAR"]
[null,null,null,null,null,null,null,null,null,null,null,"SBD"]
[null,null,null,null,null,null,null,null,null,null,null,"SCR"]
[null,null,null,null,null,null,null,null,null,null,null,"SDD"]
[null,null,null,null,null,null,null,null,null,null,null,"SDG"]
[null,null,null,null,null,null,null,null,null,null,null,"SDP"]
[null,null,null,null,null,null,null,null,null,null,null,"SEK"]
[null,null,null,null,null,null,null,null,null,null,null,"SGD"]
[null,null,null,null,null,null,null,null,null,null,null,"SHP"]
[null,null,null,null,null,null,null,null,null,null,null,"SIT"]
[null,null,null,null,null,null,null,null,null,null,null,"SKK"]
[null,null,null,null,null,null,null,null,null,null,null,"SLL"]
[null,null,null,null,null,null,null,null,null,null,null,"SOS"]
[null,null,null,null,null,null,null,null,null,null,null,"SRD"]
[null,null,null,null,null,null,null,null,null,null,null,"SRG"]
[null,null,null,null,null,null,null,null,null,null,null,"STD"]
[null,null,null,null,null,null,null,null,null,null,null,"SVC"]
[null,null,null,null,null,null,null,null,null,null,null,"SYP"]
[null,null,null,null,null,null,null,null,null,null,null,"SZL"]
[null,null,null,null,null,null,null,null,null,null,null,"THD"]
[null,null,null,null,null,null,null,null,null,null,null,"TJS"]
[null,null,null,null,null,null,null,null,null,null,null,"TMM"]
[null,null,null,null,null,null,null,null,null,null,null,"TMT"]
[null,null,null,null,null,null,null,null,null,null,null,"TND"]
[null,null,null,null,null,null,null,null,null,null,null,"TOP"]
[null,null,null,null,null,null,null,null,null,null,null,"TRL"]
[null,null,null,null,null,null,null,null,null,null,null,"TRY"]
[null,null,null,null,null,null,null,null,null,null,null,"TTD"]
[null,null,null,null,null,null,null,null,null,null,null,"TWD"]
[null,null,null,null,null,null,null,null,null,null,null,"TZS"]
[null,null,null,null,null,null,null,null,null,null,null,"UAH"]
[null,null,null,null,null,null,null,null,null,null,null,"UGX"]
[null,null,null,null,null,null,null,null,null,null,null,"UYU"]
[null,null,null,null,null,null,null,null,null,null,null,"UZS"]
[null,null,null,null,null,null,null,null,null,null,null,"VEB"]
[null,null,null,null,null,null,null,null,null,null,null,"VEF"]
[null,null,null,null,null,null,null,null,null,null,null,"VND"]
[null,null,null,null,null,null,null,null,null,null,null,"VUV"]
[null,null,null,null,null,null,null,null,null,null,null,"WST"]
[null,null,null,null,null,null,null,null,null,null,null,"XAG"]
[null,null,null,null,null,null,null,null,null,null,null,"XAU"]
[null,null,null,null,null,null,null,null,null,null,null,"XCD"]
[null,null,null,null,null,null,null,null,null,null,null,"XEU"]
[null,null,null,null,null,null,null,null,null,null,null,"XOF"]
[null,null,null,null,null,null,null,null,null,null,null,"XPD"]
[null,null,null,null,null,null,null,null,null,null,null,"XPF"]
[null,null,null,null,null,null,null,null,null,null,null,"XPT"]
[null,null,null,null,null,null,null,null,null,null,null,"YEAR"]
[null,null,null,null,null,null,null,null,null,null,null,"YUN"]
[null,null,null,null,null,null,null,null,null,null,null,"ZAR"]
[null,null,null,null,null,null,null,null,null,null,null,"ZMK"]
[null,null,null,null,null,null,null,null,null,null,null,"ZMW"]
[null,null,null,null,null,null,null,null,null,null,null,"ZWD"]

{"sheet":"Tabla SMV-001","index":14,"n_rows":18,"n_cols":2,"rows_kept":18,"cut":false,"hidden":false,"merged":[[0,0,0,1],[1,0,1,1],[2,0,2,1],[3,0,3,1]]}
["Superitendencia del Mercado de Valores"]
["Tipo de Valor"]
["Tabla SMV-001"]
[]
["Código","Detalle"]
["001","Bonos"]
["002","Letras del Tesoro"]
["003","Notas del Tesoro"]
["004","Valores Comerciales Negociables"]
["005","Acciones Comunes"]
["006","Acciones Preferidas"]
["007","Acciones o Cuotas de Participación"]
["008","Futuros"]
["009","Opciones"]
["010","CFD"]
["011","Otros Valores de Renta Fija (detallar)"]
["012","Otros Valores de Renta Variable (detallar)"]
["013","Otros Valores Derivados (detallar)"]

{"sheet":"Tabla SMV-002","index":15,"n_rows":87,"n_cols":8,"rows_kept":87,"cut":false,"hidden":false,"merged":[[10,0,10,3],[29,0,29,3],[30,0,30,3],[63,0,63,3],[0,0,0,3],[1,0,1,3],[2,0,2,3],[3,0,3,1],[5,0,5,3],[7,0,7,3]]}
["Superitendencia del Mercado de Valores"]
["Bancos establecidos en Panamá"]
["Tabla SMV-002"]
["http://www.superbancos.gob.pa/es/reportes_estadisticos"]
[]
["Locales"]
["No.","BANCOS","Fecha de Inicio de Operaciones","Procedencia de Capital"]
["Bancos Oficiales",null,null,null,null,null,null,"BANCOS"]
[1,"Banco Nacional de Panamá","Oct -1904","Panamá",null,null,1,"Banco Nacional de Panamá"]
[2,"Caja de Ahorros","Jul - 1934","Panamá",null,null,{"$f":"G9+1","v":2},"Allbank Corp."]
["Bancos Panameños Privados",null,null,null,null,null,{"$f":"G10+1","v":3},"Andbanc (Panamá), S.A."]
[1,"Banco General, S.A.","Abr -  1955","Panamá",null,null,4,"Atlantic Security Bank"]
[{"$f":"+A12+1","v":2},"Towerbank International, Inc.","Oct -  1971","Panamá",null,null,5,"Austrobank Overseas (Panamá), S.A."]
[3,"Banco Panameño de la Vivienda, S.A.","Abr -  1981","Panamá",null,null,6,"BAC Bank, Inc."]
[4,"Multibank, Inc.","May - 1990","Panamá",null,null,7,"BAC International Bank, Inc."]
[5,"Metrobank, S.A.","Sep -  1991","Panamá",null,null,8,"Balboa Bank & Trust Corp."]
[6,"Banco Aliado, S.A.","Jul  -  1992","Panamá",null,null,9,"Banca Privada D'Andorra, S.A."]
[7,"Credicorp Bank, S.A.","Jun  - 1993","Panamá",null,null,10,"Banco Aliado, S.A."]
[8,"Global Bank Corporation","Jun  - 1994","Panamá",null,null,11,"Banco Azteca (Panamá), S.A."]
[9,"Banco Universal, S.A.","Dic  - 1994","Panamá",null,null,12,"Banco BAC de Panamá, S.A."]
[10,"Mi Banco, S.A.(BMF)","Ene - 1998","Panamá",null,null,13,"Banco Colpatria - Multibanca Colpatria, S.A., Sucursal Panama"]
[11,"MMG Bank Corporation","Mar -  2003","Panamá",null,null,14,"Banco Corficolombiana Panamá, S.A."]
[12,"Banco Delta, S.A. (BMF)","Jul  -   2006","Panamá",null,null,15,"Banco Credit Andorra (Panamá), S.A."]
[13,"Capital Bank, Inc.","Ene -  2008","Panamá",null,null,16,"Banco Davivienda (Panamá), S.A."]
[14,"Banco Panamá, S.A.","Abr -   2008","Panamá",null,null,17,"Banco de Bogotá (Panamá), S.A."]
[15,"Banco Prival, S.A.","Mar -   2010","Panamá",null,null,18,"Banco de Bogotá (Panamá), S.A. - Sucursal"]
[16,"Balboa Bank & Trust Corp ","May -  2010","Panamá",null,null,19,"Banco de Bogotá, S.A."]
[17,"Banco La Hipotecaria, S.A.","Jun  -  2010","Panamá",null,null,20,"Banco de Crédito del Perú"]
[18,"Unibank, S.A","Dic  -  2010","Panamá",null,null,21,"Banco de la Nación Argentina"]
["Extranjeros",null,null,null,null,null,22,"Banco de Occidente (Panamá), S.A."]
["Bancos Extranjeros Privados",null,null,null,null,null,23,"Banco del Pacífico (Panamá), S.A."]
[1,"Citibank, N.A.","Ago -  1904","E.U.A.",null,null,24,"Banco Delta, S.A. (BMF)"]
[{"$f":"A32+1","v":2},"Banco Davivienda (Panamá), S.A.","Dic  -  1966","Colombia",null,null,25,"Banco Ficohsa (Panamá), S.A."]
[{"$f":"A33+1","v":3},"Banco de Bogotá, (Panamá) S.A. ","Ago -  1967","Colombia",null,null,26,"Banco G&T Continental, S.A. (BMF)"]
[{"$f":"A34+1","v":4},"HSBC Bank (Panamá), S.A. ","May -  1971","Reino Unido",null,null,27,"Banco General, S.A."]
[{"$f":"A35+1","v":5},"Mega International Commercial Bank CO.LTD","Ago -  1974","Taiwan",null,null,28,"Banco Internacional de Costa Rica, S. A."]
[{"$f":"A36+1","v":6},"The Bank of Nova Scotia","Nov -  1974","Canadá",null,null,29,"Banco Internacional de Perú, S.A.A. - Interbank"]
[{"$f":"A37+1","v":7},"Banco Internacional de Costa Rica, S.A. ","Sep -  1976","Costa Rica",null,null,30,"Banco La Hipotecaria, S.A."]
[8,"Banco Latinoamericano de Comercio Exterior, S. A.","Ene -  1978","Multinacional",null,null,31,"Banco Lafise Panamá, S.A."]
[9,"Mercantil Bank, (Panamá) S.A.","Mar -  1978","Venezuela",null,null,32,"Banco Latinoamericano de Comercio Exterior, S.A."]
[10,"Banco del Pacífico (Panamá), S.A.","Jul  -  1980","Ecuador",null,null,33,"Banco Panamá, S.A."]
[11,"Korea Exchange Bank, Ltd.","Dic -   1980","Corea del Sur",null,null,34,"Banco Panameño de la Vivienda, S.A."]
[12,"Bank Leumi Le-Israel, B.M","Oct -  1982","Israel",null,null,35,"Banco Pichincha Panamá, S.A."]
[13,"Banco Bilbao Vizcaya Argentaria (Panamá), S. A.","May - 1983","España",null,null,36,"Banco Prival, S.A."]
[14,"Banesco, S.A. ","May - 1993","Venezuela",null,null,37,"Banco Santander (Panamá), S.A."]
[15,"BCT Bank International ","Mar -  1994","Costa Rica",null,null,38,"Banco Universal, S.A."]
[16,"Bank of China Limited","Jul  -  1994","China",null,null,39,"Bancolombia (Panamá), S.A."]
[17,"BAC International Bank,  Inc.","Mar -  1996","Colombia",null,null,40,"Bancolombia, S.A."]
[18,"ST.Georges Bank & Company Inc.","Mar -  2002","Nicaragua",null,null,41,"Banesco, S.A."]
[19,"Banco Citibank (Panamá), S.A ","Jun -   2003","E.U.A.",null,null,42,"Banisi, S.A."]
[20,"Banco Azteca (Panamá), S.A.","Mar -  2005","México",null,null,43,"Banistmo S.A."]
[21,"Banco Pichincha Panamá, S.A ","May - 2005","Ecuador",null,null,44,"Bank of China Limited"]
[22,"FPB BANK, INC.","May - 2005","Brasil",null,null,45,"BBP Bank, S.A."]
[23,"Produbank (Panamá), S.A.","Abr -  2006","Ecuador",null,null,46,"BCT Bank International, S.A."]
[24,"BANISI, S.A. ","Mar -  2008","Ecuador",null,null,47,"BHD International Bank (Panamá), S.A."]
[25,"Banco G&T Continental (Panamà),S.A.(BMF)","Jul  -  2008","Guatemala",null,null,48,"BI Bank (Panama), S.A."]
[26,"Banco Bolivariano (Panamá)","May - 2009        ","Ecuador",null,null,49,"BSI Bank (Panama), S.A."]
[27,"Banco Lafise Panamá S.A.","Mar -  2010","Nicaragua",null,null,50,"Caja de Ahorros"]
[28,"The Bank of Nova Scotia (Panamá), S.A.","Oct -  2010","Canadá",null,null,51,"Canal Bank S.A.(BMF)"]
[29,"Allbank Corp.","Jul -   2012","Venezuela",null,null,52,"Capital Bank, Inc."]
[30,"Bancolombia, S.A.","Nov -  2012","Colombia",null,null,53,"Citibank, N.A."]
[31,"Banco Ficohsa (Panamá), S.A.","May - 2011","Honduras",null,null,54,"Credicorp Bank, S.A."]
[null,null,null,null,null,null,55,"First Central International Bank"]
["Fuente: Superintendencia de Bancos de Panamá",null,null,null,null,null,56,"FPB Bank, Inc."]
[null,null,null,null,null,null,57,"Global Bank Corporation"]
[null,null,null,null,null,null,58,"GNB Sudameris Bank, S.A."]
[null,null,null,null,null,null,59,"GTC Bank Inc."]
[null,null,null,null,null,null,60,"Helm Bank (Panamá), S.A."]
[null,null,null,null,null,null,61,"Inteligo Bank, Ltd."]
[null,null,null,null,null,null,62,"International Union Bank, S. A."]
[null,null,null,null,null,null,63,"KEB Hana Bank"]
[null,null,null,null,null,null,64,"Mega International Commercial Bank Co. Ltd."]
[null,null,null,null,null,null,65,"Mercantil Bank (Panamá), S.A."]
[null,null,null,null,null,null,66,"Metrobank, S.A."]
[null,null,null,null,null,null,{"$f":"G74+1","v":67},"MMG Bank Corporation"]
[null,null,null,null,null,null,68,"Multibank, Inc."]
[null,null,null,null,null,null,69,"PKB Banca Privada (Panamá), S.A."]
[null,null,null,null,null,null,70,"Popular Bank, Ltd. Inc."]
[null,null,null,null,null,null,71,"Produbank (Panamá), S.A."]
[null,null,null,null,null,null,72,"Scotiabank (Panamá), S.A."]
[null,null,null,null,null,null,73,"Scotianbank Perú, S.A.A. Sucursal Panamá"]
[null,null,null,null,null,null,74,"ST. George Bank & Company Inc."]
[null,null,null,null,null,null,75,"TAG Bank, S.A."]
[null,null,null,null,null,null,76,"The Bank of Nova Scotia"]
[null,null,null,null,null,null,77,"The Bank of Nova Scotia (Panamá) S.A."]
[null,null,null,null,null,null,78,"Towerbank International, Inc."]
[null,null,null,null,null,null,79,"Unibank, S.A."]

{"sheet":"Tabla SMV-003","index":16,"n_rows":228,"n_cols":2,"rows_kept":228,"cut":false,"hidden":false,"merged":[[0,0,0,1],[1,0,1,1],[2,0,2,1],[4,0,6,0],[4,1,6,1]]}
["Superitendencia del Mercado de Valores"]
["Clasificación de Destino"]
["Tabla SMV-003"]
[]
["Código","Jurisdicción"]
[]
[]
["001","Alemania"]
["002","Andorra"]
["003","Australia"]
["004","Austria"]
["005","Bélgica"]
["006","Canada"]
["007","Chipre"]
["008","Dinamarca"]
["009","Eslovaquia"]
["010","Eslovenia"]
["011","España"]
["012","Estados Unidos de América (INCLUYE Samoa Americana, Guam, Islas Midway, Islas Marianas del Norte, Puerto Rico, Islas Vírgenes de los EE.UU. y las Islas Wake)"]
["013","Estonia"]
["014","Finlandia"]
["015","Francia (INCLUYE Guayana Francesa, Territorios Australes Franceses, Guadalupe, Martinica, Mayotte, Mónaco, Reunión y San Pedro y Miquelón)"]
["016","Grecia"]
["017","Groenlandia"]
["018","Holanda"]
["019","Irlanda"]
["020","Islandia"]
["021","Islas Feroe"]
["022","Italia"]
["023","Japón"]
["024","Liechtenstein"]
["025","Luxemburgo"]
["026","Malta"]
["027","Noruega"]
["028","Nueva Zelanda"]
["029","Portugal"]
["030","Reino Unido"]
["031","San Marino"]
["032","Suecia"]
["033","Suiza"]
["034","Vaticano"]
["035","Anguila"]
["036","Antigua y Barbuda"]
["037","Antillas Neerlandesas"]
["038","Aruba"]
["039","Bahamas"]
["040","Bahréin"]
["041","Barbados"]
["042","Bermudas"]
["043","Curazao"]
["044","Gibraltar"]
["045","Guernsey"]
["046","Hong Kong SAR"]
["047","Isla de los Hombres"]
["048","Islas Caimán"]
["049","Islas Vírgenes Británicas"]
["050","jersey"]
["051","Macao"]
["052","Líbano"]
["053","Mauricio"]
["054","Montserrat y San Cristóbal"]
["055","Panamá"]
["056","Samoa"]
["057","Singapur"]
["058","Sint Maarten"]
["059","St. Kitts - Nevis"]
["060","Vanuatu"]
["061","Albania"]
["062","Bielorrusia"]
["063","Bosnia y Herzegovina"]
["064","Bulgaria"]
["065","Croacia"]
["066","Hungría"]
["067","Letonia"]
["068","Lituania"]
["069","Macedonia"]
["070","Moldavia"]
["071","Montenegro"]
["072","Polonia"]
["073","República Checa"]
["074","Rumania"]
["075","Rusia"]
["076","Serbia"]
["077","Turquía"]
["078","Ucrania"]
["079","Argentina"]
["080","Belice"]
["081","Bolivia"]
["082","Bonaire, Saint Eustatius and Saba"]
["083","Brasil"]
["084","Chile"]
["085","Colombia"]
["086","Costa Rica"]
["087","Cuba"]
["088","Dominica"]
["089","República Dominicana"]
["090","Ecuador  "]
["091","El Salvador"]
["092","Falkland Islands"]
["093","Grenada"]
["094","Guatemala"]
["095","Guyana"]
["096","Haití"]
["097","Honduras"]
["098","Jamaica"]
["099","México"]
[{"$f":"1+A106","v":100},"Nicaragua"]
[101,"Paraguay"]
[102,"Perú"]
[103,"St. Lucia"]
[104,"St. Vincent "]
[105,"Suriname"]
[106,"Trinidad and Tobago  "]
[107,"Turks and Caicos"]
[108,"Uruguay"]
[109,"Venezuela  "]
[110,"Angola"]
[111,"Arabia Saudita"]
[112,"Argelia"]
[113,"Benín"]
[114,"Botswana"]
[115,"Burkina Faso"]
[116,"Burundi"]
[117,"Cabo Verde"]
[118,"Camerún"]
[119,"Chad"]
[120,"Comoras"]
[121,"Congo"]
[122,"Côte d'Ivoire"]
[123,"Djibouti"]
[124,"Egipto"]
[125,"Emiratos Árabes Unidos"]
[126,"Eritrea"]
[127,"Etiopía"]
[128,"Gabón"]
[129,"Gambia"]
[130,"Ghana"]
[131,"Guinea"]
[132,"Guinea Ecuatorial"]
[133,"Guinea-Bissau"]
[134,"Irak"]
[135,"Irán"]
[136,"Israel"]
[137,"Jordania"]
[138,"Katar"]
[139,"Kenia"]
[140,"Kuwait"]
[141,"Lesoto"]
[142,"Liberia"]
[143,"Libia"]
[144,"Madagascar"]
[145,"Malawi"]
[146,"Malí"]
[147,"Marruecos"]
[148,"Mauritania"]
[149,"Mozambique"]
[150,"Namibia"]
[151,"Níger"]
[152,"Nigeria"]
[153,"Omán"]
[154,"República Centroafricana"]
[155,"República Democrática del Congo"]
[156,"Ruanda"]
[157,"Santo Tomé y Príncipe"]
[158,"Senegal"]
[159,"Seychelles"]
[160,"Sierra Leona"]
[161,"Siria"]
[162,"Somalia"]
[163,"St. Helena"]
[{"$f":"1+A170","v":164},"Sudáfrica"]
[165,"Sudán"]
[166,"Sudán del Sur"]
[167,"Swazilandia"]
[168,"Tanzania"]
[169,"Territorio Palestino"]
[170,"Togo"]
[171,"Túnez"]
[172,"Uganda"]
[173,"Yemen"]
[174,"Zambia"]
[175,"Zimbabue"]
[176,"Afganistán"]
[177,"Armenia"]
[178,"Azerbaiyán"]
[179,"Bangladesh"]
[180,"Brunei"]
[181,"Bután"]
[182,"Camboya"]
[183,"China"]
[184,"Corea del Norte"]
[185,"Corea del Sur"]
[186,"EE.UU. Islas del Pacífico"]
[187,"Fiji"]
[188,"Filipinas"]
[189,"Georgia"]
[190,"India"]
[191,"Indonesia"]
[192,"Islas Marshall"]
[193,"islas Salomón"]
[194,"Kazajstán"]
[195,"Kirguistán"]
[196,"Kiribati"]
[197,"Laos"]
[198,"Malasia"]
[199,"Maldivas"]
[200,"Micronesia"]
[201,"Mongolia"]
[202,"Myanmar"]
[203,"Nauru"]
[204,"Nepal"]
[205,"Nueva Caledonia"]
[206,"Pakistán"]
[207,"Palau"]
[208,"Papua Nueva Guinea"]
[209,"Polinesia francés"]
[210,"Sri Lanka"]
[211,"Tailandia"]
[212,"Taipéi Chino"]
[213,"Tayikistán"]
[214,"Territorios Británicos de Ultramar"]
[215,"Timor Leste"]
[216,"Tonga"]
[217,"Turkmenistán"]
[218,"Tuvalu"]
[219,"Uzbekistán"]
[220,"Vietnam"]
[221,"Wallis y Futuna"]